Cogmind - Beta 17 @@@ ROGUE MODE // 2026.08.14 @ 17:03:08 Player: Foongus0298 Result: Destroyed by P-60 Hacker with Shock Rifle Performance ------------- Evolutions (2) 1000 Regions Visited (5) 1000 Robots Destroyed (62) 310 Value Destroyed (2415) 2415 Prototype IDs (3) 60 Alien Tech Used (0) 0 Bonus (6250) 6250 TOTAL SCORE: 11035 Bonus ------- High Alert Combat Kills 100 Prayed to X0-1V1 5000 Major X0-1V1 Interference 950 Entered Garrisons 200 Cogmind --------- Core Integrity 0/375 Matter 2/300 Energy 84/100 System Corruption 10% Temperature Cool (0) Movement Core (800) Ox15 Location -8/Garrison Parts ------- > --- POWER (1) -------- (None) > --- PROPULSION (4) --- (None) > --- UTILITY (4) ------ High-capacity Storage Unit Advanced Visual Processing Unit X0-1V1's Piety Tracker > --- WEAPON (2) ------- Particle Gun Improved Assault Rifle > --- INVENTORY (21) --- Ion Engine Improved Ion Engine Light Nuclear Core Aluminum Leg Aluminum Leg Aluminum Leg Improved Heat Sink Advanced Heat Sink Small Storage Unit Small Matter Pod (0) Authchip [R/Combat] Authchip [R/Combat] Authchip [R/Combat] Relay Coupler [Grunt] (24) Relay Coupler [Behemoth] (99) Improved Assault Rifle Flak Cannon Improved Datajack Peak State ------------ > --- POWER ------------ Nuclear Core > --- PROPULSION ------- Light Treads Light Treads Light Treads Compact Wheel > --- UTILITY ---------- High-capacity Storage Unit Advanced Visual Processing Unit Seismic Detector X0-1V1's Piety Tracker > --- WEAPON ----------- EM Pulse Cannon Flak Cannon > --- INVENTORY -------- Ion Engine Light Ion Engine Improved Ion Engine Wheel Compact Wheel Compact Wheel Heat Sink Advanced Heat Sink Small Storage Unit Small Matter Pod Authchip [R/Combat] Authchip [R/Combat] Authchip [R/Combat] Authchip [R/Combat] Authchip [R/Combat] Improved Assault Rifle Improved Assault Rifle Improved Assault Rifle Rocket Launcher Rocket Launcher Improved Datajack [Rating: 36] Favorites ----------- Power Ion Engine Engine Ion Engine Power Core Nuclear Core Propulsion Light Treads Treads Light Treads Leg Improved Aluminum Leg Wheel Compact Wheel Utility High-capacity Storage Unit Device X0-1V1's Piety Tracker Storage High-capacity Storage Unit Processor Advanced Visual Processing Unit Weapon Improved Assault Rifle Energy Gun Medium Laser Energy Cannon EM Pulse Cannon Ballistic Gun Improved Assault Rifle Ballistic Cannon Flak Cannon Launcher Rocket Launcher Build | -11 -10 -10 -9 -8 -8 ------- Run | Yrd Mat Min Mat Mat Gar Slots Evolved 4 | . . . 2 2 . Power . | . . . . . . Propulsion 2 | . . . 1 1 . Utility 2 | . . . 1 1 . Weapon . | . . . . . . Parts Attached 41 | 7 5 . 11 7 11 Power 5 | 1 . . 2 1 1 Engine 2 | 1 . . 1 . . Core 3 | . . . 1 1 1 Reactor . | . . . . . . Propulsion 16 | 2 2 . 4 3 5 Treads 7 | 2 . . 2 3 . Leg 2 | . . . . . 2 Wheel 7 | . 2 . 2 . 3 Hover . | . . . . . . Flight . | . . . . . . Utility 7 | 2 2 . 1 1 1 Device 4 | 1 1 . 1 . 1 Storage 2 | 1 1 . . . . Processor 1 | . . . . 1 . Hackware . | . . . . . . Protection . | . . . . . . Artifact . | . . . . . . Weapon 13 | 2 1 . 4 2 4 Energy Gun 5 | 1 1 . 2 . 1 Energy Cannon 1 | . . . . 1 . Ballistic Gun 4 | 1 . . 2 . 1 Ballistic Cannon 1 | . . . . 1 . Launcher 2 | . . . . . 2 Special Weapon . | . . . . . . Impact Weapon . | . . . . . . Slashing Weapon . | . . . . . . Piercing Weapon . | . . . . . . Special Melee Weapon . | . . . . . . Unidentified Prototypes 3 | . 1 . 2 . . Corrupted Parts 1 | . . . . 1 . System Corruption 3 | . . . . 3 . Parts Lost 29 | . 2 1 7 2 17 Power 4 | . . . 2 . 2 Propulsion 16 | . 2 . 3 2 9 Utility 3 | . . . 1 . 2 Weapon 6 | . . 1 1 . 4 Highest Loss Streak 8 | . 1 1 4 1 8 To Critical Strikes 1 | . . . . . 1 Average Backups 13 | 1 4 7 13 20 20 Power 1 | . 1 2 1 2 2 Propulsion 3 | 1 1 3 4 5 3 Utility 3 | . 1 2 2 4 8 Weapon 3 | . . . 6 9 4 Tool/Special . | . . . . . . Unused Backups 24 | . . . . 2 22 Power 3 | . . . . . 3 Propulsion 5 | . . . . . 5 Utility 12 | . . . . 1 11 Weapon 3 | . . . . 1 2 Tool/Special 1 | . . . . . 1 Average Slot Usage (%) 95 | . 99 98 96 98 89 Engine 5 | . 14 14 3 2 . Core 4 | . . . 7 6 8 Treads 19 | . 16 14 20 27 17 Wheel 11 | . 10 14 11 9 13 Device 15 | . 14 14 20 18 11 Storage 11 | . 14 14 11 9 9 Processor 3 | . . . . 7 9 Energy Gun 6 | . 14 25 5 . . Energy Cannon 1 | . . . . 4 3 Ballistic Gun 10 | . 14 1 16 4 5 Ballistic Cannon 2 | . . . . 8 3 Launcher 1 | . . . . . 4 Peak Build Rating 36 | 7 21 21 30 35 36 Average Rating 24 | 5 14 20 25 33 33 On Entrance 18 | . 7 21 21 28 35 Avg Prop Armor Cover (%) 16 | . 12 14 17 23 17 Naked Turns . | . . . . . . Heaviest Build 61 | 15 51 51 53 61 61 Greatest Support 60 | 40 40 16 26 16 60 Greatest Overweight (x) 6 | 1 4 3 5 3 6 Average Overweight (x) 2 | . 2 3 4 3 2 Largest Inventory Capacity 21 | 8 20 20 21 21 21 Average Capacity 19 | 7 17 20 20 21 21 Most Carried 21 | 3 8 8 21 21 21 Average Carried 13 | 2 4 7 13 20 20 Final Capacity 21 | 8 20 20 21 21 21 Final Carried 21 | 3 8 8 21 21 18 Class Distribution -------------------- 58% | Mutant 41% | Scavenger-Mutant Dominant Class ---------------- Mutant | -10/Materials Mutant | -10/Mines Scavenger-Mutant | -9/Materials Scavenger-Mutant | -8/Materials Mutant | -8/Garrison Resources | -11 -10 -10 -9 -8 -8 ----------- Run | Yrd Mat Min Mat Mat Gar Matter Collected 1252 | 266 171 18 285 210 302 Remotely . | . . . . . . Salvage Created 2230 | 10 529 99 533 425 634 Parts 114 | 5 25 4 32 18 30 Haulers Intercepted 3 | . . . 3 . . Recyclers Shooed 5 | . 1 2 1 1 . Parts Field Recycled . | . . . . . . Retrieved Matter . | . . . . . . Parts Self-Destructed . | . . . . . . Prevented . | . . . . . . Parts Restored . | . . . . . . Kills | -11 -10 -10 -9 -8 -8 ------- Run | Yrd Mat Min Mat Mat Gar Combat Hostiles Destroyed 52 | . 11 2 9 9 21 Guns 24 | . 11 2 9 . 2 Cannons 14 | . . . . 7 7 AOE 13 | . . . . 2 11 Classes Destroyed 11 | 1 5 . 2 1 2 Worker 2 | . 1 . . 1 . Builder 1 | . 1 . . . . Tunneler 1 | 1 . . . . . Hauler 3 | . . . 3 . . Recycler 2 | . 1 . 1 . . Operator 1 | . . . . 1 . Swarmer 10 | . 3 . 3 . 4 Grunt 35 | . 8 2 4 7 14 Duelist 2 | . . . . . 2 Sentry 4 | . . . 2 2 . Programmer 1 | . . . . . 1 Best Kill Streak 10 | 1 9 2 5 7 10 Combat Bots Only 10 | . 5 2 5 5 10 Max Kills in Single Turn 3 | 1 1 1 1 3 3 Gunslinging . | . . . . . . Exploded 3 | . . . . 2 3 Melee . | . . . . . . Uniques/NPCs Destroyed . | . . . . . . Combat | -11 -10 -10 -9 -8 -8 -------- Run | Yrd Mat Min Mat Mat Gar Hostile Shots Fired 295 | . 60 11 51 44 129 Missed 66 | . 10 2 9 15 30 Hits 229 | . 50 9 42 29 99 Melee 2 | . . . . . 2 Projectile 227 | . 50 9 42 29 97 Critical Strikes 11 | . 1 . 1 2 7 Part Disruptions 1 | . . . . . 1 Damage Taken 3255 | . 493 108 537 457 1660 Core 554 | . 89 10 67 47 341 Absorbed by Shields 31 | . . . . . 31 Ignored by Resistances 42 | . 42 . . . . Core Remaining (%) 71 | 100 . 43 70 . . Volleys Fired 153 | 2 38 7 33 24 49 Largest 2 | 2 2 2 2 2 2 Hottest 121 | 70 70 115 121 100 100 Shots Fired 289 | 4 76 14 62 47 86 Gun 201 | 4 76 14 62 4 41 Cannon 69 | . . . . 43 26 Launcher 19 | . . . . . 19 Special . | . . . . . . Kinetic 166 | 2 38 1 50 27 48 Thermal 75 | 2 38 13 12 . 10 Explosive 19 | . . . . . 19 Electromagnetic 29 | . . . . 20 9 Robot Hit Streak 15 | 1 12 10 15 12 7 Robot Miss Streak 6 | 1 5 1 1 6 6 Penetration Max . | . . . . . . Secondary Targets 4 | . 1 1 2 . . Max Gunslinging Chain 1 | . 1 1 1 . . Shots Hit Robots 214 | 2 53 11 51 38 59 Core Hits 130 | 1 23 6 19 32 49 Critical Kills . | . . . . . . Critical Parts Destroyed 2 | . . . 1 . 1 Critical Strikes 7 | . 3 . 2 1 1 Burn 4 | . 3 . 1 . . Destroy 2 | . . . 1 . 1 Corrupt 1 | . . . . 1 . Melee Attacks . | . . . . . . Impact . | . . . . . . Slashing . | . . . . . . Piercing . | . . . . . . Sneak Attacks . | . . . . . . Combat Hostiles . | . . . . . . Follow-up Attacks . | . . . . . . Damage Inflicted 4541 | 22 717 163 773 996 1870 Guns 2210 | 22 717 163 773 53 482 Cannons 1118 | . . . . 785 333 Explosions 1205 | . . . . 158 1047 Melee . | . . . . . . Ramming 8 | . . . . . 8 Kinetic 1984 | 22 348 . 626 414 574 Thermal 951 | . 369 163 147 158 114 Explosive 1047 | . . . . . 1047 Electromagnetic 551 | . . . . 424 127 Impact . | . . . . . . Slashing . | . . . . . . Piercing . | . . . . . . Highest Corruption 10 | . . . . 3 10 Average Corruption 3 | . . . . 3 3 Corruption Purged . | . . . . . . Corruption Blocked . | . . . . . . Effects 15 | . . . . 3 12 Message Errors 3 | . . . . 1 2 Matter Fused 2 | . . . . . 2 Heat Flow Errors 1 | . . . . . 1 Energy Discharges 1 | . . . . . 1 Data Loss (minor) 4 | . . . . 1 3 Data Loss (major) 1 | . . . . . 1 Misfires 1 | . . . . . 1 Weapon Failures 2 | . . . . 1 1 Overload Shots . | . . . . . . Overflow Damage 19 | . . . . . 19 Projectiles . | . . . . . . Explosions 19 | . . . . . 19 Melee . | . . . . . . Knockbacks 15 | . . . . 10 5 Impact . | . . . . . . Kinetic 14 | . . . . 9 5 Secondary 1 | . . . . 1 . Self-Inflicted Damage 197 | . . . . . 197 Shots 6 | . . . . . 6 Rammed 1 | . . . . . 1 Targets Rammed 1 | . . . . . 1 Kicked . | . . . . . . Crushed . | . . . . . . Highest Temperature 291 | 18 30 291 13 42 251 Average Temperature 40 | 10 12 83 7 17 74 Received Heat Transfer 1119 | . 231 63 210 279 336 Effects 1 | . . 1 . . . Energy Bleed 1 | . . 1 . . . Siege Activations . | . . . . . . Martial Activations . | . . . . . . Shielding Activations . | . . . . . . Robots Disrupted . | . . . . . . Combat Hostiles . | . . . . . . Robots Corrupted . | . . . . . . Combat Hostiles . | . . . . . . Parts Fried . | . . . . . . Impact Corruptions . | . . . . . . Robots Melted . | . . . . . . Combat Hostiles . | . . . . . . Parts Melted 4 | . 2 . 1 . 1 Heat Transferred 2431 | . 1258 407 444 100 222 Parts Sabotaged . | . . . . . . Parts Stolen . | . . . . . . Parts Stripped . | . . . . . . Power Chain Reactions 1 | . . . . 1 . Alert | -11 -10 -10 -9 -8 -8 ------- Run | Yrd Mat Min Mat Mat Gar Maximum Alert Level 3 | . . . 1 1 3 Low Security (%) 72 | 100 100 100 88 88 16 Level 1 16 | . . . 11 11 42 Level 2 11 | . . . . . 40 Level 3 . | . . . . . . Level 4 . | . . . . . . Level 5 . | . . . . . . High Security . | . . . . . . Max Security . | . . . . . . Peak Influence 704 | 5 145 76 220 218 704 Initial 131 | . 3 36 13 72 131 Average 159 | . 57 54 82 93 400 Influence Increases 1711 | 5 294 50 389 280 693 Destroy 0b10 Robot/C 1040 | . 220 40 180 180 420 Destroy 0b10 Robot/NC 50 | 5 15 . 20 10 . Destroy Leader 176 | . 40 10 46 50 30 Successful Hack 35 | . 18 . 13 4 . Disable Machine 30 | . . . . 30 . Anti-Garrison Action 150 | . . . . . 150 Destroy Structure 103 | . 1 . 3 6 93 Lose Combat Pursuer 15 | . . . 15 . . Miscellaneous 112 | . . . 112 . . Influence Decreases 1057 | . 205 108 253 250 241 Entered New Map 254 | . 2 58 23 100 71 Time Decay 543 | . 183 40 190 130 . Lost Part 260 | . 20 10 40 20 170 Squads Dispatched 4 | . 1 . 1 2 . Investigation 1 | . 1 . . . . Extermination . | . . . . . . Reinforcement 2 | . . . 1 1 . Assault . | . . . . . . Garrison 1 | . . . . 1 . Intercept . | . . . . . . Searches Triggered . | . . . . . . Construction Impeded . | . . . . . . Haulers Reinforced . | . . . . . . Active Scanning Responses . | . . . . . . Cargo Convoy Interrupts . | . . . . . . Stealth | -11 -10 -10 -9 -8 -8 --------- Run | Yrd Mat Min Mat Mat Gar Distress Signals 2 | . 1 . . 1 . Communications Jammed . | . . . . . . Distress Signals . | . . . . . . Times Spotted 73 | . 21 2 13 13 24 Peak Tracking Total 6 | . 6 2 6 4 4 Tactical Retreats 1 | . . . 1 . . Traps | -11 -10 -10 -9 -8 -8 ------- Run | Yrd Mat Min Mat Mat Gar Traps Triggered 4 | . 1 . . . 3 Indirectly . | . . . . . . Trap Hack Attempts . | . . . . . . Triggered . | . . . . . . Disarmed . | . . . . . . Reprogrammed . | . . . . . . Reused . | . . . . . . Traps Extracted . | . . . . . . Installed . | . . . . . . Triggered . | . . . . . . Machines | -11 -10 -10 -9 -8 -8 ---------- Run | Yrd Mat Min Mat Mat Gar Machines Disabled 4 | . . . . 2 2 Max in Single Turn 1 | . . . . 1 1 Garrison Relay 2 | . . . . . 2 Machines Repaired . | . . . . . . Machines Dismantled . | . . . . . . Machines Sabotaged . | . . . . . . Overloaded Fab Kills . | . . . . . . Hacking | -11 -10 -10 -9 -8 -8 --------- Run | Yrd Mat Min Mat Mat Gar Machines Accessed 9 | . 2 . 5 1 1 Terminals 8 | . 2 . 5 . 1 Fabricators . | . . . . . . Repair Stations . | . . . . . . Recycling Units . | . . . . . . Scanalyzers . | . . . . . . Garrison Access 1 | . . . . 1 . Total Hacks 23 | . 10 . 10 1 2 Successful 8 | . 4 . 3 1 . Failed 14 | . 5 . 7 . 2 Catastrophic 6 | . 1 . 3 . 2 Database Lockouts 1 | . 1 . . . . Manual 17 | . 10 . 7 . . Terminals 22 | . 10 . 10 . 2 Fabricators . | . . . . . . Repair Stations . | . . . . . . Recycling Units . | . . . . . . Scanalyzers . | . . . . . . Garrison Access 1 | . . . . 1 . Terminal Hacks 7 | . 4 . 3 . . Part Schematic 1 | . . . 1 . . Robot Analysis 5 | . 3 . 2 . . Alert Level 1 | . 1 . . . . Fabricator Hacks . | . . . . . . Repair Station Hacks . | . . . . . . Recycling Unit Hacks . | . . . . . . Scanalyzer . | . . . . . . Garrison Access Hacks 1 | . . . . 1 . Unlock Access 1 | . . . . 1 . Unauthorized Hacks . | . . . . . . Terminals . | . . . . . . Fabricators . | . . . . . . Repair Stations . | . . . . . . Recycling Units . | . . . . . . Scanalyzers . | . . . . . . Garrison Access . | . . . . . . Data Cores Recovered . | . . . . . . Used . | . . . . . . Hacking Detections 8 | . 2 . 5 . 1 Full Trace Events 1 | . . . . . 1 Feedback Events . | . . . . . . Feedback Blocked . | . . . . . . Robot Schematics Acquired . | . . . . . . Robots Built . | . . . . . . Authchips . | . . . . . . Time . | . . . . . . Total Robot Build Rating . | . . . . . . Part Schematics Acquired 1 | . . . 1 . . Parts Built . | . . . . . . Authchips . | . . . . . . Time . | . . . . . . Total Part Build Rating . | . . . . . . Part Studies Acquired . | . . . . . . Parts Repaired . | . . . . . . Time . | . . . . . . Parts Recycled . | . . . . . . Recycled Matter . | . . . . . . Retrieved Matter . | . . . . . . Retrieved Components . | . . . . . . Parts Scanalyzed . | . . . . . . Part Schematics Acquired . | . . . . . . Parts Damaged . | . . . . . . Bothacking | -11 -10 -10 -9 -8 -8 ------------ Run | Yrd Mat Min Mat Mat Gar Used RIF Installer . | . . . . . . Robots Hacked . | . . . . . . Non-combat . | . . . . . . Combat . | . . . . . . Robot Hacks Applied . | . . . . . . Relay Couplers Released 10 | . . . . . 10 Machine Destruction 10 | . . . . . 10 Fabnet Peak Effective % . | . . . . . . Robots Rewired . | . . . . . . Allies Hacked . | . . . . . . Hacks Repelled . | . . . . . . Allies | -11 -10 -10 -9 -8 -8 -------- Run | Yrd Mat Min Mat Mat Gar Total Allies . | . . . . . . Largest Group . | . . . . . . Highest-Rated Group . | . . . . . . Highest-Rated Ally . | . . . . . . Total Orders . | . . . . . . Ally Attacks . | . . . . . . Total Damage . | . . . . . . Kills . | . . . . . . Allies Corrupted . | . . . . . . Allies Melted . | . . . . . . X0-1V1 Amusement Gains 78 | . 8 . 10 . 60 Good Acts 9 | . 5 . 1 . 3 Bad Acts 9 | . 1 1 4 . 3 Intel | -11 -10 -10 -9 -8 -8 ------- Run | Yrd Mat Min Mat Mat Gar Active Infowar (turns) 1660 | 9 242 . 544 265 600 Optics 837 | . . . . 237 600 Seismic 1264 | 9 242 . 544 265 204 Robot Analysis Total 5 | . 3 . 2 . . Derelict Logs Recovered . | . . . . . . Drone Launches . | . . . . . . Drone Recoveries . | . . . . . . Exploration | -11 -10 -10 -9 -8 -8 ------------- Run | Yrd Mat Min Mat Mat Gar Turns Passed 2189 | 96 601 83 544 265 600 Spaces Moved 1069 | 50 315 42 276 115 271 Core 3 | 3 . . . . . Treads 141 | 47 75 . . . 19 Legs . | . . . . . . Wheels 925 | . 240 42 276 115 252 Hover . | . . . . . . Flight . | . . . . . . Fastest Speed 50 | 50 140 145 105 145 115 Average Speed 144 | 155 146 145 146 145 134 Slowest Speed 240 | 160 160 145 155 145 240 Overloaded Moves . | . . . . . . Propulsion Burnouts . | . . . . . . Robots Hopped . | . . . . . . Potential Cave-ins . | . . . . . . Cave-ins Triggered . | . . . . . . Exploration Rate (%) 28 | 4 48 14 38 18 48 Regions Visited 5 Branch Regions 1 Pre-discovered Areas . | . . . . . . Known Exits Taken 2 | . 1 . . 1 . Unknown Exits Taken 3 | 1 . 1 1 . . Scrap Searched . | . . . . . . Spaces Dug . | . . . . . . Terrain Destroyed 73 | . . . . 6 67 Melee . | . . . . . . Projectile . | . . . . . . AOE 73 | . . . . 6 67 Terrain Rammed . | . . . . . . Walls Destroyed . | . . . . . . Machines Disabled . | . . . . . . Actions | -11 -10 -10 -9 -8 -8 --------- Run | Yrd Mat Min Mat Mat Gar Total 1427 | 61 376 50 350 166 424 Wait 79 | . 11 . 11 12 45 Move 1064 | 49 314 41 275 114 271 Hop . | . . . . . . Pick Up 47 | 3 6 1 17 3 17 Fast Attach 17 | 7 . . 5 4 1 Attach 22 | . 3 1 6 2 10 Detach 5 | . 1 . 2 2 . Swap 6 | . 3 . 1 1 1 Drop 14 | . . . . 4 10 Fire 153 | 2 38 7 33 24 49 Melee . | . . . . . . Ram 1 | . . . . . 1 Kick . | . . . . . . Crush . | . . . . . . Escape Stasis 10 | . . . . . 10 Rewire 9 | . . . . . 9 Trap . | . . . . . . Miscellaneous . | . . . . . . Route ------- -11/Scrapyard -10/Materials (discovered 4 exits: *Mat / *Min x2 / [*Sub]) -10/Mines -9/Materials (discovered 2 exits: *Mat / [*Min]) -8/Materials -8/Garrison (discovered 1 exit: [*Mat]) History --------- Turn | Location | Event 15 | -11/Scrapyard | Discovered new exit (range 15) 97 | -11/Scrapyard | Entered Materials 260 | -10/Materials | Discovered new exit (range 9) 316 | -10/Materials | Build established: Mutant 322 | -10/Materials | Discovered new exit (range 9) 335 | -10/Materials | Prayed at D.C.S.S. Altar Unit 371 | -10/Materials | Heat dissipation permanently improved by X0-1V1 (+15; -75 max core) 426 | -10/Materials | Identified exit to Mines 426 | -10/Materials | X0-1V1 revealed exit location to -10/Mines 436 | -10/Materials | X0-1V1 sent hostile G-34 Mercenary (x3) 526 | -10/Materials | Discovered new exit (range 15) 627 | -10/Materials | Core integrity fell below 50% 657 | -10/Materials | Central database locked down 698 | -10/Materials | Entered Mines 720 | -10/Mines | Met a Derelict bent on vengeance 761 | -10/Mines | Discovered new exit (range 4) 768 | -10/Mines | Received a Rocket Launcher from a helpful Derelict 781 | -10/Mines | Entered Materials 781 | -9/Materials | Evolved 2 slots: Propulsion x1, Utility x1 865 | -9/Materials | Lost 3 parts (1p1n1w) 1025 | -9/Materials | Discovered new exit (range 11) 1028 | -9/Materials | X0-1V1 added 0b10 threat records associated with you (minor) 1123 | -9/Materials | Build established: Scavenger-Mutant 1136 | -9/Materials | Inventory capacity permanently improved by X0-1V1 (+1; -100 max core) 1245 | -9/Materials | Lost 4 parts (1p2n1u) 1317 | -9/Materials | Discovered new exit (range 3) 1325 | -9/Materials | Entered another Materials area 1325 | -8/Materials | Evolved 2 slots: Propulsion x1, Utility x1 1518 | -8/Materials | Garrison activated, responded to threat 1586 | -8/Materials | Identified exit to Garrison 1590 | -8/Materials | Entered Garrison 1666 | -8/Garrison | Triggered checkpoint 1710 | -8/Garrison | Garrison Relay disabled 1776 | -8/Garrison | Triggered checkpoint 1778 | -8/Garrison | Triggered checkpoint 1827 | -8/Garrison | Lost 4 parts (2n1u1w) 1909 | -8/Garrison | Discovered new exit (range 8) 1920 | -8/Garrison | Triggered checkpoint 2014 | -8/Garrison | Triggered checkpoint 2023 | -8/Garrison | Triggered checkpoint 2078 | -8/Garrison | X0-1V1 activates XOMVISION 2083 | -8/Garrison | Destroyed 10 combat bots 2090 | -8/Garrison | Lost 4 parts (1p1n1u1w) 2128 | -8/Garrison | X0-1V1 sent you into danger 2157 | -8/Garrison | Core integrity fell below 50% 2170 | -8/Garrison | Core integrity fell below 20% 2187 | -8/Garrison | System corruption reached 10% 2190 | -8/Garrison | Destroyed by P-60 Hacker with Shock Rifle Last Messages --------------- 02166_ Matter capacity returns to normal. 02178_ P-60 Hacker resets P-60 Hacker, system corruption cleaned. 02178_ Aluminum Leg destroyed. 02180_ Unknown Energy Gun melted. 02180_ P-60 Hacker destroyed. 02180_ X0-1V1: "One less obstacle for my toy on its journey to the highest levels of glorious entertainment." 02181_ System corrupted: FCS attempts to trigger Imp. Assault Rifle. 02181_ System corrupted: Imp. Assault Rifle misfires. 02182_ System corrupted: Imp. Assault Rifle jammed. 02185_ P-60 Hacker suffers critical hit (Destroy). 02185_ Destroyed Unknown Energy Gun. 02186_ Com. Wheel destroyed. 02190_ X0-1V1 bursts into laughter! Map ----- +----------------------------------------------------+ | ????????????????????????????########## # #### | | ????????????????????????# # ## | | ????????????????????????????######### # # # | | ????????????????????????????????????### # | | ??????????????????????????????????????# | | ??????????????????????????????????????### = | | ???????????????????????????????????????# | | ???????????????????????????????????????#### [ | | ????????????????????????????????????????# | | ????????????????????????????????????????# | | ????????????????????????????????????????# | | ????????????????????????????????????????# | | ????????????????????????????????????????### #% | | ??????????????????????????????????######### | | ?????????????????????????????????# ! | | ?????????????????????????????????# | | ?????????????????????????????????# ###### | | ???????????????????##########????????????## # | | ??????????????????## + #?????????????# ## | | ??????????????????# ! #! #?????????????# ## # | | ??????????????????## # ####?????????????# ## # | | ???????????????????# * #????????????????# # # | | ???????????????????# % #????????????????# #### | | ???????????????????#####p#????????????????# #??? | | ?????????????????????###p###########??????# #??? | | ?????????????????????# @ #??? | | ?????????????????????# #??? | | ?????????????????????# #??? | | ?????????????????????# ######### ###########??? | | ?????????????????????# #???????????????????????? | | ?????????????????????# #???????????????????????? | | ?????????????????????# #???????????????????????? | | ?????????????????????# #???????????????????????? | | ?????????????????????# #???????????????????????? | | ?????????????????????# #???????????????????????? | | ???????????????s?????# ????????????????????????? | | ???????????????s?????# ????????????????????????? | | ???????????????s?????# ????????????????????????? | | ?????????????????????# ????????????????????????? | | ?????????????????????# ????????????????????????? | | ?????????????????????# ????????????????????????? | | ????????????????????? ????????????????????????? | | ????????????????????? ????????????????????????? | | ?????????????????????# ????????????????????????? | | ?????????????????????????????????????????????????? | | ?????????????????????????????????????????????????? | | ?????????????????????????????????????????????????? | | ?????????????????????????????????????????????????? | | ?????????????????????????????????????????????????? | | ?????????????????????????????????????????????????? | +----------------------------------------------------+ Best States ------------- Heat Dissipation 46 Energy Generation 14 Energy Capacity 1050 Matter Stores 300 Matter Capacity 300 Sight Range 20 Terrain Scan Density 10 Resistance: TH 24 Evasion (%) 40 Recoil Reduction 3 Authchip Count 5 Item Schematics ----------------- Arm. Wheel | -9/Materials | Hacked Robot Schematics ------------------ None Fabricated ------------ Nothing Repaired ---------- Nothing Studied --------- None Alien Tech Used ----------------- None Achievements -------------- Chaos Is Inevitable Challenges ------------ None Game ------ Seed ImpulseEncryptedRocket Manual? 0 Play Time 00:33:19 Cumulative 134.3 hours Start 2026.08.14 @ 16:25:43 End 2026.08.14 @ 17:03:08 Sessions 1 Manual Loads 0 Difficulty Rogue Special Mode None Game No. 87 Rogue 87 Adventurer 0 Explorer 0 Win Type - Total 3 Types 2/0/0/1/0/0/0/0/0/0 Lore% 59 Gallery% 55 Achievement% 47 Wizard Run 0 Options --------- Layout 1 ASCII 0 Keyboard 0 Movement Mouse Keybinds 0 Fullscreen 1 Font 24/Smallcaps Map View 50x35 Zoom Use 0% Tactical HUD 1 Map Filters NONE Filters NONE Steam 1 RUN: 9f12b753-290e-497d-b116-e8482225c352